[Event "Titled Tuesday Blitz April 19 Early 2022"]
[White "Kotepalli, Sai Nirupama"]
[Black "parintele_chess"]
[WhiteFideId "5039444"]
[WhiteElo "2389"]
[BlackElo "2230"]
[Result "1-0"]
[Round "09"]
[TimeControl "180+1"]
[Date "2022.04.19"]
[WhiteClock "0:00:10"]
[BlackClock "0:00:08"]

1. e4 {[%clk 0:03:00]}  c6 {[%clk 0:02:59]} 2. d3 {[%clk 0:02:59]}  d5 {[%clk 0:03:00]} 3. Nd2 {[%clk 0:02:58]}  dxe4 {[%clk 0:02:59]} 4. dxe4 {[%clk 0:02:58]}  e5 {[%clk 0:02:57]} 5. Ngf3 {[%clk 0:02:57]}  Nd7 {[%clk 0:02:57]} 6. Bd3 {[%clk 0:02:56]}  Ngf6 {[%clk 0:02:56]} 7. O-O {[%clk 0:02:54]}  g6 {[%clk 0:02:54]} 8. c3 {[%clk 0:02:51]}  Bg7 {[%clk 0:02:53]} 9. a4 {[%clk 0:02:50]}  a5 {[%clk 0:02:51]} 10. Nc4 {[%clk 0:02:47]}  O-O {[%clk 0:02:43]} 11. Nfxe5 {[%clk 0:02:38]}  Nxe5 {[%clk 0:02:44]} 12. Nxe5 {[%clk 0:02:38]}  Nxe4 {[%clk 0:02:45]} 13. Nxc6 {[%clk 0:02:30]}  Nxc3 {[%clk 0:02:35]} 14. Nxd8 {[%clk 0:02:21]}  Nxd1 {[%clk 0:02:35]} 15. Rxd1 {[%clk 0:01:56]}  Rxd8 {[%clk 0:02:34]} 16. Bg5 {[%clk 0:01:55]}  Rd4 {[%clk 0:02:23]} 17. Be4 {[%clk 0:01:32]}  Be6 {[%clk 0:02:16]} 18. Bxb7 {[%clk 0:01:21]}  Rb8 {[%clk 0:02:12]} 19. Ba6 {[%clk 0:01:15]}  Rxb2 {[%clk 0:02:04]} 20. h3 {[%clk 0:01:07]}  h6 {[%clk 0:01:39]} 21. Be3 {[%clk 0:01:04]}  Rxd1+ {[%clk 0:01:37]} 22. Rxd1 {[%clk 0:01:05]}  Bb3 {[%clk 0:01:32]} 23. Rd8+ {[%clk 0:01:00]}  Kh7 {[%clk 0:01:31]} 24. Bb5 {[%clk 0:01:00]}  Be5 {[%clk 0:01:19]} 25. f4 {[%clk 0:00:52]}  Bf6 {[%clk 0:01:00]} 26. Ra8 {[%clk 0:00:48]}  Rb1+ {[%clk 0:00:55]} 27. Kh2 {[%clk 0:00:42]}  Bc3 {[%clk 0:00:52]} 28. Bb6 {[%clk 0:00:37]}  Rb2 {[%clk 0:00:46]} 29. Bxa5 {[%clk 0:00:32]}  Bd5 {[%clk 0:00:41]} 30. Rd8 {[%clk 0:00:24]}  Rxg2+ {[%clk 0:00:39]} 31. Kh1 {[%clk 0:00:23]}  Bf3 {[%clk 0:00:20]} 32. Rd3 {[%clk 0:00:20]}  Bxa5 {[%clk 0:00:15]} 33. Rxf3 {[%clk 0:00:18]}  Rb2 {[%clk 0:00:11]} 34. Rd3 {[%clk 0:00:16]}  Rf2 {[%clk 0:00:09]} 35. Rd4 {[%clk 0:00:14]}  Rf3 {[%clk 0:00:05]} 36. Kg2 {[%clk 0:00:14]}  Rc3 {[%clk 0:00:05]} 37. Rd7 {[%clk 0:00:13]}  Kg7 {[%clk 0:00:05]} 38. Ra7 {[%clk 0:00:13]}  Rc2+ {[%clk 0:00:05]} 39. Kf3 {[%clk 0:00:12]}  Bb6 {[%clk 0:00:06]} 40. Rb7 {[%clk 0:00:12]}  Bd4 {[%clk 0:00:05]} 41. Be8 {[%clk 0:00:11]}  h5 {[%clk 0:00:04]} 42. Rxf7+ {[%clk 0:00:10]}  Kh6 {[%clk 0:00:04]} 43. Rd7 {[%clk 0:00:10]}  Rf2+ {[%clk 0:00:04]} 44. Kg3 {[%clk 0:00:06]}  Bb6 {[%clk 0:00:02]} 45. Rd6 {[%clk 0:00:06]}  h4+ {[%clk 0:00:02]} 46. Kxh4 {[%clk 0:00:03]}  Rxf4+ {[%clk 0:00:02]} 47. Kg3 {[%clk 0:00:03]}  Rb4 {[%clk 0:00:02]} 48. Rxg6+ {[%clk 0:00:03]}  Kh5 {[%clk 0:00:02]} 49. Rxb6+ {[%clk 0:00:02]}  Kg5 {[%clk 0:00:02]} 50. Rxb4 {[%clk 0:00:03]}  Kf6 {[%clk 0:00:03]} 51. Rb5 {[%clk 0:00:04]}  Ke7 {[%clk 0:00:03]} 52. Bd7 {[%clk 0:00:05]}  Kxd7 {[%clk 0:00:03]} 53. a5 {[%clk 0:00:05]}  Kc6 {[%clk 0:00:04]} 54. Rb6+ {[%clk 0:00:06]}  Kc7 {[%clk 0:00:04]} 55. h4 {[%clk 0:00:07]}  Kc8 {[%clk 0:00:04]} 56. h5 {[%clk 0:00:08]}  Kc7 {[%clk 0:00:05]} 57. h6 {[%clk 0:00:09]}  Kc8 {[%clk 0:00:06]} 58. h7 {[%clk 0:00:09]}  Kc7 {[%clk 0:00:07]} 59. h8=Q {[%clk 0:00:10]}  Kd7 {[%clk 0:00:08]} 60. Qh7+ {[%clk 0:00:10]}  Ke8 {[%clk 0:00:08]} 61. Rb8# {[%clk 0:00:10]} 1-0


[Site "https://www.chess.com"]

[Event "Titled Tuesday Blitz April 19 Early 2022"]
[White "Lach, Aleksandra"]
[Black "Hoffmann, Asa"]
[WhiteFideId "1134299"]
[BlackFideId "2001470"]
[WhiteElo "2172"]
[BlackElo "2117"]
[Result "1-0"]
[Round "09"]
[TimeControl "180+1"]
[Date "2022.04.19"]
[WhiteClock "0:00:12"]
[BlackClock "0:00:04"]

1. e4 {[%clk 0:03:00]}  d6 {[%clk 0:02:51]} 2. d4 {[%clk 0:02:58]}  Nf6 {[%clk 0:02:49]} 3. Nc3 {[%clk 0:02:58]}  c6 {[%clk 0:02:48]} 4. Nf3 {[%clk 0:02:42]}  Bg4 {[%clk 0:02:47]} 5. h3 {[%clk 0:02:39]}  Bh5 {[%clk 0:02:47]} 6. g4 {[%clk 0:02:37]}  Bg6 {[%clk 0:02:47]} 7. Bd3 {[%clk 0:02:38]}  e6 {[%clk 0:02:46]} 8. Be3 {[%clk 0:02:35]}  d5 {[%clk 0:02:46]} 9. e5 {[%clk 0:02:29]}  Nfd7 {[%clk 0:02:45]} 10. Qd2 {[%clk 0:02:12]}  c5 {[%clk 0:02:44]} 11. dxc5 {[%clk 0:01:58]}  Bxc5 {[%clk 0:02:42]} 12. Bxg6 {[%clk 0:01:55]}  hxg6 {[%clk 0:02:41]} 13. O-O-O {[%clk 0:01:51]}  Nc6 {[%clk 0:02:41]} 14. Bxc5 {[%clk 0:01:46]}  Nxc5 {[%clk 0:02:40]} 15. Nd4 {[%clk 0:01:47]}  Qa5 {[%clk 0:02:34]} 16. Kb1 {[%clk 0:01:40]}  Rc8 {[%clk 0:02:15]} 17. f4 {[%clk 0:01:34]}  O-O {[%clk 0:02:06]} 18. h4 {[%clk 0:01:32]}  Qb4 {[%clk 0:02:03]} 19. Nb3 {[%clk 0:01:26]}  Nd7 {[%clk 0:01:51]} 20. h5 {[%clk 0:01:24]}  gxh5 {[%clk 0:01:45]} 21. Rxh5 {[%clk 0:01:23]}  d4 {[%clk 0:01:40]} 22. Qh2 {[%clk 0:01:15]}  f6 {[%clk 0:01:36]} 23. Ne4 {[%clk 0:01:09]}  d3 {[%clk 0:01:25]} 24. cxd3 {[%clk 0:00:58]}  Ndxe5 {[%clk 0:01:17]} 25. fxe5 {[%clk 0:00:56]}  Nxe5 {[%clk 0:01:17]} 26. d4 {[%clk 0:00:35]}  Nf3 {[%clk 0:01:07]} 27. Qf2 {[%clk 0:00:32]}  Ng5 {[%clk 0:00:54]} 28. Nxg5 {[%clk 0:00:25]}  fxg5 {[%clk 0:00:54]} 29. Qh2 {[%clk 0:00:25]}  Rcd8 {[%clk 0:00:30]} 30. Rxg5 {[%clk 0:00:24]}  Qc4 {[%clk 0:00:25]} 31. Qe5 {[%clk 0:00:14]}  Rf7 {[%clk 0:00:24]} 32. Qe4 {[%clk 0:00:11]}  Qd5 {[%clk 0:00:23]} 33. Qxd5 {[%clk 0:00:11]}  exd5 {[%clk 0:00:23]} 34. Re5 {[%clk 0:00:11]}  Rf4 {[%clk 0:00:22]} 35. Rde1 {[%clk 0:00:11]}  Rxg4 {[%clk 0:00:21]} 36. Re8+ {[%clk 0:00:11]}  Rxe8 {[%clk 0:00:22]} 37. Rxe8+ {[%clk 0:00:11]}  Kh7 {[%clk 0:00:22]} 38. Re5 {[%clk 0:00:12]}  Rg1+ {[%clk 0:00:21]} 39. Kc2 {[%clk 0:00:12]}  g5 {[%clk 0:00:21]} 40. Rxd5 {[%clk 0:00:12]}  g4 {[%clk 0:00:21]} 41. Nd2 {[%clk 0:00:12]}  g3 {[%clk 0:00:21]} 42. Rg5 {[%clk 0:00:12]}  g2 {[%clk 0:00:20]} 43. d5 {[%clk 0:00:08]}  Kh6 {[%clk 0:00:17]} 44. Rg3 {[%clk 0:00:09]}  Kh5 {[%clk 0:00:17]} 45. d6 {[%clk 0:00:09]}  Kh4 {[%clk 0:00:17]} 46. Rg8 {[%clk 0:00:08]}  Kh3 {[%clk 0:00:16]} 47. d7 {[%clk 0:00:08]}  Rf1 {[%clk 0:00:13]} 48. d8=Q {[%clk 0:00:07]}  g1=Q {[%clk 0:00:11]} 49. Rxg1 {[%clk 0:00:07]}  Rxg1 {[%clk 0:00:11]} 50. Qd7+ {[%clk 0:00:08]}  Kh2 {[%clk 0:00:11]} 51. Qxb7 {[%clk 0:00:09]}  Rg2 {[%clk 0:00:09]} 52. Qh7+ {[%clk 0:00:09]}  Kg1 {[%clk 0:00:09]} 53. Qe4 {[%clk 0:00:09]}  Kh2 {[%clk 0:00:08]} 54. Qe7 {[%clk 0:00:08]}  a5 {[%clk 0:00:07]} 55. Qa7 {[%clk 0:00:08]}  Rg5 {[%clk 0:00:06]} 56. Qe3 {[%clk 0:00:08]}  Rg4 {[%clk 0:00:05]} 57. Qe2+ {[%clk 0:00:08]}  Kg3 {[%clk 0:00:05]} 58. Qxg4+ {[%clk 0:00:08]}  Kxg4 {[%clk 0:00:04]} 59. Nc4 {[%clk 0:00:09]}  a4 {[%clk 0:00:04]} 60. Nb6 {[%clk 0:00:09]}  a3 {[%clk 0:00:04]} 61. b3 {[%clk 0:00:09]}  Kf5 {[%clk 0:00:04]} 62. Nc4 {[%clk 0:00:10]}  Ke4 {[%clk 0:00:03]} 63. Nxa3 {[%clk 0:00:11]}  Kd4 {[%clk 0:00:04]} 64. Nb1 {[%clk 0:00:11]}  Kc5 {[%clk 0:00:03]} 65. Kc3 {[%clk 0:00:11]}  Kb5 {[%clk 0:00:04]} 66. a4+ {[%clk 0:00:12]} 1-0


[Site "https://www.chess.com"]

[Event "Titled Tuesday Blitz April 19 Early 2022"]
[White "Lauridsen, Jesper Morch"]
[Black "Prohorov, Olexandr"]
[WhiteFideId "1401890"]
[BlackFideId "14105578"]
[WhiteElo "2260"]
[BlackElo "1993"]
[Result "0-1"]
[Round "09"]
[TimeControl "180+1"]
[Date "2022.04.19"]
[WhiteClock "0:00:25"]
[BlackClock "0:00:51"]

1. e4 {[%clk 0:02:41]}  c6 {[%clk 0:03:00]} 2. d4 {[%clk 0:02:34]}  d5 {[%clk 0:03:01]} 3. exd5 {[%clk 0:02:33]}  cxd5 {[%clk 0:03:01]} 4. c4 {[%clk 0:02:34]}  Nf6 {[%clk 0:03:00]} 5. Nc3 {[%clk 0:02:33]}  e6 {[%clk 0:02:59]} 6. Nf3 {[%clk 0:02:33]}  Bb4 {[%clk 0:02:58]} 7. cxd5 {[%clk 0:02:29]}  Nxd5 {[%clk 0:02:57]} 8. Bd2 {[%clk 0:02:26]}  Nc6 {[%clk 0:02:56]} 9. Bd3 {[%clk 0:02:25]}  O-O {[%clk 0:02:55]} 10. O-O {[%clk 0:02:24]}  Be7 {[%clk 0:02:50]} 11. Re1 {[%clk 0:02:22]}  Bf6 {[%clk 0:02:50]} 12. Ne4 {[%clk 0:02:18]}  Nxd4 {[%clk 0:02:28]} 13. Nxd4 {[%clk 0:01:42]}  Bxd4 {[%clk 0:02:26]} 14. Ng5 {[%clk 0:01:40]}  g6 {[%clk 0:02:11]} 15. Rc1 {[%clk 0:01:19]}  Bxb2 {[%clk 0:02:09]} 16. Qf3 {[%clk 0:01:13]}  Bxc1 {[%clk 0:02:05]} 17. Qh3 {[%clk 0:01:07]}  h5 {[%clk 0:01:52]} 18. Rxc1 {[%clk 0:01:05]}  Bd7 {[%clk 0:01:52]} 19. Ne4 {[%clk 0:00:47]}  e5 {[%clk 0:01:38]} 20. Qg3 {[%clk 0:00:44]}  Rc8 {[%clk 0:01:30]} 21. Bc4 {[%clk 0:00:40]}  Nf4 {[%clk 0:01:19]} 22. Bxf4 {[%clk 0:00:34]}  Bf5 {[%clk 0:00:55]} 23. Bg5 {[%clk 0:00:25]}  Rxc4 {[%clk 0:00:51]} 0-1


[Site "https://www.chess.com"]

[Event "Titled Tuesday Blitz April 19 Early 2022"]
[White "Lehtosaari, Mauri"]
[Black "Khamdamova, Afruza"]
[WhiteFideId "501999"]
[BlackFideId "14210444"]
[WhiteElo "2533"]
[BlackElo "1660"]
[Result "0-1"]
[Round "09"]
[TimeControl "180+1"]
[Date "2022.04.19"]
[WhiteClock "0:00:02"]
[BlackClock "0:00:44"]

1. d4 {[%clk 0:02:56]}  Nf6 {[%clk 0:02:59]} 2. Nf3 {[%clk 0:02:55]}  d5 {[%clk 0:02:59]} 3. Bg5 {[%clk 0:02:55]}  Ne4 {[%clk 0:02:58]} 4. Bf4 {[%clk 0:02:55]}  c5 {[%clk 0:02:58]} 5. e3 {[%clk 0:02:56]}  Nc6 {[%clk 0:02:57]} 6. c3 {[%clk 0:02:56]}  Qb6 {[%clk 0:02:55]} 7. Qb3 {[%clk 0:02:56]}  c4 {[%clk 0:02:54]} 8. Qxb6 {[%clk 0:02:56]}  axb6 {[%clk 0:02:54]} 9. Nfd2 {[%clk 0:02:56]}  Bf5 {[%clk 0:02:53]} 10. Nxe4 {[%clk 0:02:54]}  Bxe4 {[%clk 0:02:52]} 11. Nd2 {[%clk 0:02:55]}  Bg6 {[%clk 0:02:51]} 12. e4 {[%clk 0:02:50]}  e6 {[%clk 0:02:48]} 13. Be2 {[%clk 0:02:50]}  b5 {[%clk 0:02:45]} 14. Bf3 {[%clk 0:02:48]}  Rd8 {[%clk 0:02:38]} 15. exd5 {[%clk 0:02:47]}  exd5 {[%clk 0:02:38]} 16. a3 {[%clk 0:02:40]}  Bd6 {[%clk 0:02:33]} 17. Bxd6 {[%clk 0:02:21]}  Rxd6 {[%clk 0:02:33]} 18. O-O {[%clk 0:02:19]}  O-O {[%clk 0:02:33]} 19. Rfe1 {[%clk 0:02:19]}  Ra8 {[%clk 0:02:25]} 20. Nf1 {[%clk 0:02:03]}  f6 {[%clk 0:02:17]} 21. Rad1 {[%clk 0:01:26]}  Bf7 {[%clk 0:02:14]} 22. Re3 {[%clk 0:01:21]}  Kf8 {[%clk 0:02:11]} 23. Rde1 {[%clk 0:01:20]}  Re8 {[%clk 0:02:04]} 24. Rxe8+ {[%clk 0:00:56]}  Bxe8 {[%clk 0:02:02]} 25. Ne3 {[%clk 0:00:56]}  Bf7 {[%clk 0:02:02]} 26. Nf5 {[%clk 0:00:56]}  Rd7 {[%clk 0:02:01]} 27. h3 {[%clk 0:00:53]}  h5 {[%clk 0:01:33]} 28. Ng3 {[%clk 0:00:37]}  g6 {[%clk 0:01:32]} 29. Re2 {[%clk 0:00:33]}  Na5 {[%clk 0:01:20]} 30. Re1 {[%clk 0:00:27]}  Nb3 {[%clk 0:01:19]} 31. Bd1 {[%clk 0:00:26]}  Nc1 {[%clk 0:01:17]} 32. Bc2 {[%clk 0:00:25]}  Nd3 {[%clk 0:01:08]} 33. Bxd3 {[%clk 0:00:25]}  cxd3 {[%clk 0:01:08]} 34. Rd1 {[%clk 0:00:23]}  h4 {[%clk 0:01:07]} 35. Nf1 {[%clk 0:00:20]}  Re7 {[%clk 0:01:04]} 36. Ne3 {[%clk 0:00:18]}  f5 {[%clk 0:01:02]} 37. Kf1 {[%clk 0:00:14]}  f4 {[%clk 0:01:02]} 38. Ng4 {[%clk 0:00:14]}  Re2 {[%clk 0:01:01]} 39. Rxd3 {[%clk 0:00:09]}  Rxb2 {[%clk 0:00:59]} 40. Ne5 {[%clk 0:00:09]}  g5 {[%clk 0:00:57]} 41. Ke1 {[%clk 0:00:07]}  Bh5 {[%clk 0:00:56]} 42. f3 {[%clk 0:00:07]}  Rxg2 {[%clk 0:00:54]} 43. Nd7+ {[%clk 0:00:06]}  Ke7 {[%clk 0:00:53]} 44. Nc5 {[%clk 0:00:04]}  b6 {[%clk 0:00:53]} 45. Na6 {[%clk 0:00:05]}  Rg3 {[%clk 0:00:51]} 46. Nb4 {[%clk 0:00:04]}  Kd6 {[%clk 0:00:50]} 47. Kf2 {[%clk 0:00:04]}  Rxh3 {[%clk 0:00:50]} 48. Rd1 {[%clk 0:00:05]}  Rh2+ {[%clk 0:00:50]} 49. Kg1 {[%clk 0:00:05]}  Rb2 {[%clk 0:00:46]} 50. Re1 {[%clk 0:00:04]}  Bxf3 {[%clk 0:00:46]} 51. Re8 {[%clk 0:00:04]}  g4 {[%clk 0:00:45]} 52. Rf8 {[%clk 0:00:02]}  g3 {[%clk 0:00:44]} 0-1


[Site "https://www.chess.com"]

[Event "Titled Tuesday Blitz April 19 Early 2022"]
[White "Maksimenko, Viktor"]
[Black "Rustemov, Alexander"]
[WhiteFideId "13710478"]
[BlackFideId "4119002"]
[WhiteElo "2269"]
[BlackElo "2773"]
[Result "1-0"]
[Round "09"]
[TimeControl "180+1"]
[Date "2022.04.19"]
[WhiteClock "0:00:40"]
[BlackClock "0:00:11"]

1. d4 {[%clk 0:02:59]}  Nf6 {[%clk 0:02:59]} 2. c4 {[%clk 0:03:00]}  e6 {[%clk 0:02:58]} 3. g3 {[%clk 0:02:59]}  d5 {[%clk 0:02:54]} 4. Bg2 {[%clk 0:02:57]}  Bb4+ {[%clk 0:02:55]} 5. Bd2 {[%clk 0:02:56]}  Be7 {[%clk 0:02:53]} 6. Nf3 {[%clk 0:02:56]}  O-O {[%clk 0:02:53]} 7. Qc2 {[%clk 0:02:51]}  c6 {[%clk 0:02:51]} 8. h4 {[%clk 0:02:52]}  Nbd7 {[%clk 0:02:46]} 9. h5 {[%clk 0:02:50]}  Ne4 {[%clk 0:02:34]} 10. h6 {[%clk 0:02:46]}  g6 {[%clk 0:02:27]} 11. Nc3 {[%clk 0:02:45]}  f5 {[%clk 0:02:27]} 12. Be3 {[%clk 0:02:23]}  a6 {[%clk 0:02:00]} 13. O-O-O {[%clk 0:01:58]}  Ndf6 {[%clk 0:01:47]} 14. Ne5 {[%clk 0:01:55]}  Bd7 {[%clk 0:01:43]} 15. g4 {[%clk 0:01:41]}  f4 {[%clk 0:01:23]} 16. Bxf4 {[%clk 0:01:36]}  Nxf2 {[%clk 0:01:22]} 17. Nxg6 {[%clk 0:01:35]}  N6xg4 {[%clk 0:00:59]} 18. e3 {[%clk 0:01:12]}  Nxh1 {[%clk 0:00:51]} 19. Rxh1 {[%clk 0:01:10]}  Bg5 {[%clk 0:00:49]} 20. Nxf8 {[%clk 0:01:05]}  Bxf4 {[%clk 0:00:47]} 21. Qxh7+ {[%clk 0:01:04]}  Kxf8 {[%clk 0:00:47]} 22. Qg7+ {[%clk 0:01:01]}  Ke8 {[%clk 0:00:46]} 23. exf4 {[%clk 0:01:01]}  Qf6 {[%clk 0:00:32]} 24. Qxg4 {[%clk 0:01:01]}  Kf7 {[%clk 0:00:30]} 25. cxd5 {[%clk 0:00:55]}  cxd5 {[%clk 0:00:30]} 26. Nxd5 {[%clk 0:00:53]}  Rc8+ {[%clk 0:00:28]} 27. Nc3 {[%clk 0:00:53]}  Qxd4 {[%clk 0:00:28]} 28. Qg7+ {[%clk 0:00:50]}  Qxg7 {[%clk 0:00:27]} 29. hxg7 {[%clk 0:00:51]}  Kxg7 {[%clk 0:00:27]} 30. Bxb7 {[%clk 0:00:51]}  Rc4 {[%clk 0:00:26]} 31. Rf1 {[%clk 0:00:50]}  a5 {[%clk 0:00:24]} 32. Kd2 {[%clk 0:00:50]}  a4 {[%clk 0:00:21]} 33. Be4 {[%clk 0:00:46]}  Kf6 {[%clk 0:00:20]} 34. Bc2 {[%clk 0:00:47]}  Rb4 {[%clk 0:00:20]} 35. Kc1 {[%clk 0:00:46]}  Ke7 {[%clk 0:00:19]} 36. a3 {[%clk 0:00:45]}  Rc4 {[%clk 0:00:20]} 37. Kd2 {[%clk 0:00:44]}  Kf6 {[%clk 0:00:19]} 38. Bd3 {[%clk 0:00:42]}  Rd4 {[%clk 0:00:19]} 39. Ke3 {[%clk 0:00:43]}  e5 {[%clk 0:00:16]} 40. fxe5+ {[%clk 0:00:42]}  Kxe5 {[%clk 0:00:17]} 41. Rh1 {[%clk 0:00:41]}  Rg4 {[%clk 0:00:17]} 42. Rh5+ {[%clk 0:00:41]}  Kd6 {[%clk 0:00:17]} 43. Ne4+ {[%clk 0:00:40]}  Kc7 {[%clk 0:00:17]} 44. Rc5+ {[%clk 0:00:39]}  Kb6 {[%clk 0:00:17]} 45. Rc4 {[%clk 0:00:39]}  Bc6 {[%clk 0:00:16]} 46. Rb4+ {[%clk 0:00:39]}  Kc7 {[%clk 0:00:16]} 47. Nc3 {[%clk 0:00:40]}  Rg2 {[%clk 0:00:15]} 48. Be4 {[%clk 0:00:39]}  Rg3+ {[%clk 0:00:11]} 49. Kf4 {[%clk 0:00:40]} 1-0


[Site "https://www.chess.com"]

[Event "Titled Tuesday Blitz April 19 Early 2022"]
[White "Markelova, Lubov"]
[Black "Carrasco Miranda, Andres"]
[WhiteFideId "24131369"]
[BlackFideId "3405990"]
[WhiteElo "1857"]
[BlackElo "2177"]
[Result "1/2-1/2"]
[Round "09"]
[TimeControl "180+1"]
[Date "2022.04.19"]
[WhiteClock "0:00:04"]
[BlackClock "0:00:15"]

1. e4 {[%clk 0:03:00]}  c5 {[%clk 0:01:59]} 2. Nf3 {[%clk 0:02:57]}  d6 {[%clk 0:01:59]} 3. d4 {[%clk 0:02:57]}  cxd4 {[%clk 0:01:59]} 4. Nxd4 {[%clk 0:02:57]}  Nf6 {[%clk 0:01:59]} 5. Nc3 {[%clk 0:02:58]}  a6 {[%clk 0:02:00]} 6. f3 {[%clk 0:02:56]}  e5 {[%clk 0:02:00]} 7. Nb3 {[%clk 0:02:57]}  Be6 {[%clk 0:02:00]} 8. Be3 {[%clk 0:02:57]}  h5 {[%clk 0:02:01]} 9. Qd2 {[%clk 0:02:55]}  Nbd7 {[%clk 0:02:01]} 10. O-O-O {[%clk 0:02:54]}  Rc8 {[%clk 0:02:01]} 11. Kb1 {[%clk 0:02:51]}  Qc7 {[%clk 0:01:59]} 12. Nd5 {[%clk 0:02:42]}  Bxd5 {[%clk 0:01:57]} 13. exd5 {[%clk 0:02:39]}  g6 {[%clk 0:01:58]} 14. Be2 {[%clk 0:02:32]}  Bg7 {[%clk 0:01:55]} 15. h4 {[%clk 0:02:21]}  O-O {[%clk 0:01:41]} 16. g4 {[%clk 0:02:16]}  Nb6 {[%clk 0:01:31]} 17. gxh5 {[%clk 0:01:58]}  Nxh5 {[%clk 0:01:29]} 18. Rhg1 {[%clk 0:01:52]}  Nc4 {[%clk 0:01:27]} 19. Bxc4 {[%clk 0:01:50]}  Qxc4 {[%clk 0:01:28]} 20. Rg2 {[%clk 0:01:45]}  e4 {[%clk 0:01:23]} 21. fxe4 {[%clk 0:01:34]}  Qxe4 {[%clk 0:01:23]} 22. Bg5 {[%clk 0:00:54]}  Rc7 {[%clk 0:01:16]} 23. Qe2 {[%clk 0:00:44]}  Qb4 {[%clk 0:00:48]} 24. a3 {[%clk 0:00:33]}  Qa4 {[%clk 0:00:47]} 25. Rg4 {[%clk 0:00:27]}  Qd7 {[%clk 0:00:44]} 26. Re4 {[%clk 0:00:24]}  Rfc8 {[%clk 0:00:37]} 27. Rd2 {[%clk 0:00:22]}  Qf5 {[%clk 0:00:35]} 28. Re8+ {[%clk 0:00:19]}  Rxe8 {[%clk 0:00:34]} 29. Qxe8+ {[%clk 0:00:20]}  Kh7 {[%clk 0:00:35]} 30. Qe2 {[%clk 0:00:17]}  Ng3 {[%clk 0:00:33]} 31. Qf2 {[%clk 0:00:17]}  Qxf2 {[%clk 0:00:26]} 32. Rxf2 {[%clk 0:00:18]}  f5 {[%clk 0:00:27]} 33. Rg2 {[%clk 0:00:15]}  Ne4 {[%clk 0:00:27]} 34. Nd2 {[%clk 0:00:13]}  Nxg5 {[%clk 0:00:23]} 35. hxg5 {[%clk 0:00:14]}  Be5 {[%clk 0:00:23]} 36. Nf3 {[%clk 0:00:13]}  Bf4 {[%clk 0:00:23]} 37. Re2 {[%clk 0:00:10]}  Kg7 {[%clk 0:00:22]} 38. Re6 {[%clk 0:00:09]}  Kf7 {[%clk 0:00:19]} 39. Rf6+ {[%clk 0:00:09]}  Kg7 {[%clk 0:00:20]} 40. Nh4 {[%clk 0:00:08]}  Rc5 {[%clk 0:00:15]} 41. Rxg6+ {[%clk 0:00:07]}  Kh7 {[%clk 0:00:14]} 42. Rh6+ {[%clk 0:00:07]}  Kg7 {[%clk 0:00:14]} 43. Rg6+ {[%clk 0:00:07]}  Kh7 {[%clk 0:00:14]} 44. Rh6+ {[%clk 0:00:04]}  Kg8 {[%clk 0:00:15]} 45. Rg6+ {[%clk 0:00:04]}  Kh7 {[%clk 0:00:15]} 1/2-1/2


[Site "https://www.chess.com"]

[Event "Titled Tuesday Blitz April 19 Early 2022"]
[White "Martic, Ivan"]
[Black "Chen, Qi b"]
[WhiteFideId "929301"]
[BlackFideId "8614733"]
[WhiteElo "2317"]
[BlackElo "2432"]
[Result "0-1"]
[Round "09"]
[TimeControl "180+1"]
[Date "2022.04.19"]
[WhiteClock "0:00:11"]
[BlackClock "0:00:03"]

1. d4 {[%clk 0:03:00]}  Nf6 {[%clk 0:02:49]} 2. Nf3 {[%clk 0:02:59]}  d5 {[%clk 0:02:48]} 3. Bf4 {[%clk 0:02:57]}  e6 {[%clk 0:02:47]} 4. e3 {[%clk 0:02:57]}  Bd6 {[%clk 0:02:47]} 5. Bg3 {[%clk 0:02:56]}  O-O {[%clk 0:02:47]} 6. Nbd2 {[%clk 0:02:53]}  c5 {[%clk 0:02:47]} 7. c3 {[%clk 0:02:53]}  Qc7 {[%clk 0:02:47]} 8. Bb5 {[%clk 0:02:48]}  a6 {[%clk 0:02:46]} 9. Bd3 {[%clk 0:02:48]}  Nbd7 {[%clk 0:02:45]} 10. b4 {[%clk 0:02:43]}  b6 {[%clk 0:02:41]} 11. bxc5 {[%clk 0:02:42]}  bxc5 {[%clk 0:02:41]} 12. O-O {[%clk 0:02:41]}  Bb7 {[%clk 0:02:09]} 13. Rb1 {[%clk 0:02:30]}  Rab8 {[%clk 0:02:07]} 14. Qe2 {[%clk 0:02:27]}  c4 {[%clk 0:01:53]} 15. Bc2 {[%clk 0:02:27]}  Bxg3 {[%clk 0:01:43]} 16. hxg3 {[%clk 0:02:26]}  Qa5 {[%clk 0:01:43]} 17. Rfc1 {[%clk 0:02:24]}  Bc6 {[%clk 0:01:40]} 18. e4 {[%clk 0:02:12]}  h6 {[%clk 0:01:26]} 19. e5 {[%clk 0:02:03]}  Nh7 {[%clk 0:01:23]} 20. g4 {[%clk 0:01:47]}  Rxb1 {[%clk 0:01:15]} 21. Bxb1 {[%clk 0:01:44]}  Rb8 {[%clk 0:01:14]} 22. g5 {[%clk 0:01:36]}  Nxg5 {[%clk 0:00:51]} 23. Nxg5 {[%clk 0:01:35]}  hxg5 {[%clk 0:00:51]} 24. Nf3 {[%clk 0:01:21]}  Qa3 {[%clk 0:00:35]} 25. Qe3 {[%clk 0:01:15]}  g4 {[%clk 0:00:22]} 26. Ng5 {[%clk 0:01:15]}  Nf8 {[%clk 0:00:22]} 27. Rf1 {[%clk 0:01:09]}  Rb2 {[%clk 0:00:17]} 28. Qf4 {[%clk 0:01:08]}  Qe7 {[%clk 0:00:17]} 29. Qxg4 {[%clk 0:01:05]}  g6 {[%clk 0:00:16]} 30. Qh4 {[%clk 0:00:57]}  Ba4 {[%clk 0:00:16]} 31. g3 {[%clk 0:00:54]}  f6 {[%clk 0:00:06]} 32. Nf3 {[%clk 0:00:35]}  g5 {[%clk 0:00:05]} 33. Qh5 {[%clk 0:00:32]}  fxe5 {[%clk 0:00:04]} 34. Nxe5 {[%clk 0:00:30]}  Bc2 {[%clk 0:00:04]} 35. Bxc2 {[%clk 0:00:29]}  Rxc2 {[%clk 0:00:05]} 36. Kg2 {[%clk 0:00:26]}  Qf6 {[%clk 0:00:05]} 37. Ng4 {[%clk 0:00:25]}  Qg6 {[%clk 0:00:04]} 38. Qh3 {[%clk 0:00:23]}  Qe4+ {[%clk 0:00:04]} 39. Kg1 {[%clk 0:00:23]}  Qg6 {[%clk 0:00:04]} 40. Ne5 {[%clk 0:00:23]}  Qf5 {[%clk 0:00:04]} 41. Qh5 {[%clk 0:00:21]}  Rxa2 {[%clk 0:00:04]} 42. Ng4 {[%clk 0:00:20]}  Qg6 {[%clk 0:00:04]} 43. Qh3 {[%clk 0:00:19]}  Rb2 {[%clk 0:00:04]} 44. Re1 {[%clk 0:00:19]}  a5 {[%clk 0:00:02]} 45. Ne5 {[%clk 0:00:18]}  Qf5 {[%clk 0:00:02]} 46. Qh2 {[%clk 0:00:16]}  a4 {[%clk 0:00:02]} 47. g4 {[%clk 0:00:16]}  Qf4 {[%clk 0:00:02]} 48. Qg2 {[%clk 0:00:15]}  a3 {[%clk 0:00:03]} 49. Nc6 {[%clk 0:00:13]}  a2 {[%clk 0:00:03]} 50. Qf1 {[%clk 0:00:13]}  Qf3 {[%clk 0:00:02]} 51. Ne5 {[%clk 0:00:11]}  Qxc3 {[%clk 0:00:02]} 52. Rc1 {[%clk 0:00:11]}  Qxc1 {[%clk 0:00:02]} 53. Qxc1 {[%clk 0:00:12]}  Rb1 {[%clk 0:00:03]} 54. Kg2 {[%clk 0:00:11]}  Rxc1 {[%clk 0:00:03]} 0-1


[Site "https://www.chess.com"]